fUSD/lending_fUSD_20240613
["ID","MTS","AMOUNT","RATE_DAILY","PERIOD"]
[329352647,1718273449673,-500.0,0.00019178,2]
[329352649,1718273449687,-235.79361962,0.00019178,2]
[329352650,1718273449706,-279.65763772,0.00019178,2]
[329352651,1718273449725,-500.0,0.00019178,2]
[329352652,1718273449751,-500.0,0.00019178,2]
[329352653,1718273449766,-500.0,0.00019178,2]
[329352654,1718273449778,-500.0,0.00019178,2]
[329352655,1718273449794,-500.0,0.00019178,2]
[329352656,1718273449809,-500.0,0.00019178,2]
[329352658,1718273449824,-322.35637093,0.0001918,2]
[329352659,1718273449835,-413.51,0.00019231,2]
[329352661,1718273449867,-549.37,0.00019277,2]
[329352662,1718273449892,-1000.0,0.0001949,2]
[329352663,1718273449909,-566.26258,0.0001985,2]
[329352664,1718273449938,-865.52345367,0.0002,2]
[329352665,1718273449950,-155.0,0.0002,2]
[329352666,1718273449961,-3896.31762119,0.0002,2]
[329352667,1718273449978,-151.0,0.0002,2]
[329352668,1718273449994,-151.0,0.0002,2]
[329352669,1718273450013,-151.0,0.0002,2]
[329352670,1718273450026,-151.0,0.0002,2]
[329352671,1718273450038,-151.0,0.0002,2]
[329352672,1718273450052,-151.0,0.0002,2]
[329352673,1718273450065,-151.0,0.0002,2]
[329352674,1718273450083,-151.0,0.0002,2]
[329352675,1718273450097,-165.0,0.0002,2]
[329352676,1718273450113,-288.78168815,0.0002,2]
[329352677,1718273450135,-151.0,0.0002,2]
[329352678,1718273450149,-151.0,0.0002,2]
[329352679,1718273450164,-151.0,0.0002,2]
[329352680,1718273450181,-151.0,0.0002,2]
[329352681,1718273450205,-151.0,0.0002,2]
[329352682,1718273450228,-151.0,0.0002,2]
[329352683,1718273450255,-151.0,0.0002,2]
[329352684,1718273450293,-151.0,0.0002,2]
[329352685,1718273450311,-151.0,0.0002,2]
[329352686,1718273450326,-151.0,0.0002,2]
[329352687,1718273450339,-1027.595217,0.0002,2]
[329352688,1718273450364,-154.775338,0.0002,2]
[329352689,1718273450386,-251.089916,0.0002,2]
[329352690,1718273450397,-361.47058682,0.0002,2]
[329352691,1718273450408,-20255.53679613,0.0002,2]
[329352692,1718273450422,-151.0,0.0002,2]
[329352693,1718273450435,-205.507436,0.0002,2]
[329352694,1718273450446,-151.0,0.0002,2]
[329352695,1718273450461,-194.201574,0.0002,2]
[329352696,1718273450474,-194.201574,0.0002,2]
[329352697,1718273450491,-151.0,0.0002,2]
[329352699,1718273450502,-600.08524,0.0002,4]
[329352701,1718273450516,-226.76270483,0.000201,2]
[329352703,1718273450536,-290.0,0.00020107,2]
[329352704,1718273450560,-38070.0,0.00020107,2]
[329352705,1718273450581,-1194.0,0.00020107,2]
[329352706,1718273450593,-5156.0,0.00020107,2]
[329352707,1718273450639,-5783.0,0.00020107,2]
[329352708,1718273450663,-1573.0,0.00020107,2]
[329352709,1718273450679,-1066.0,0.00020107,2]
[329352710,1718273450692,-1651.0,0.00020282,2]
[329352711,1718273450708,-616.0,0.00020282,2]
[329352712,1718273450720,-165.0,0.00020282,2]
[329352713,1718273450734,-184.192,0.00020282,2]
[329352714,1718273450768,-1572.67,0.00020282,2]
[329352715,1718273450787,-1980.0,0.00020282,2]
[329352716,1718273450798,-3175.0,0.00020282,2]
[329352717,1718273450809,-1306.0,0.00020282,2]
[329352718,1718273450824,-151.0,0.00020282,2]
[329352719,1718273450838,-265.94481,0.00020282,2]
[329352720,1718273450851,-151.0,0.00020282,2]
[329352721,1718273450887,-151.0,0.00020282,2]
[329352722,1718273450898,-151.0,0.00020282,2]
[329352723,1718273450912,-301.542854,0.00020282,2]
[329352724,1718273450924,-186.444417,0.00020282,2]
[329352725,1718273450939,-186.444417,0.00020282,2]
[329352726,1718273450953,-2902.35987761,0.00020355,2]
[329352727,1718273450970,-1152.0,0.00020528,2]
[329352728,1718273450981,-11340.0,0.000208,5]
[329352729,1718273450998,-608.29,0.00020989,2]
[329352730,1718273451023,-1250.0,0.00021,2]
[329352731,1718273451044,-2057.6267458,0.000212,2]
[329352732,1718273451066,-322.35637093,0.0002132,2]
[329352733,1718273451080,-1000.0,0.00021439,2]
[329352734,1718273451096,-2902.35987761,0.00021718,2]
[329352735,1718273451111,-737.05590411,0.000219,2]
[329352736,1718273451125,-487.22,0.00021918,2]
[329352737,1718273451145,-242.63,0.00021918,2]
[329352738,1718273451171,-250.0,0.00021918,2]
[329352739,1718273451183,-150.0,0.00021918,2]
[329352740,1718273451194,-3242.65995362,0.00022,10]
[329352741,1718273451209,-151.0,0.00022,7]
[329352742,1718273451221,-566.26257,0.0002235,2]
[329352743,1718273451231,-1613.0,0.00022483,2]
[329352744,1718273451243,-241.3882198,0.00023,2]
[329352745,1718273451256,-1300.0,0.00023,2]
[329352746,1718273451267,-151.0,0.00023,7]
[329352747,1718273451280,-151.0,0.00023,7]
[329352748,1718273451309,-1027.595217,0.00023,7]
[329352749,1718273451322,-2902.35987761,0.00023082,2]
[329352750,1718273451333,-151.0,0.00023082,7]
[329352751,1718273451346,-151.0,0.00023082,7]
[329352752,1718273451365,-151.0,0.00023082,7]
[329352753,1718273451380,-151.0,0.00023082,7]
[329352754,1718273451394,-151.0,0.00023082,7]
[329352755,1718273451406,-151.0,0.00023082,7]
[329352756,1718273451419,-151.0,0.00023082,7]
[329352757,1718273451431,-151.0,0.00023082,7]
[329352758,1718273451450,-194.201574,0.00023082,7]
[329352759,1718273451462,-194.201574,0.00023082,7]
[329352760,1718273451473,-218.223,0.00023107,2]
[329352761,1718273451485,-608.29,0.00023253,2]
[329352762,1718273451496,-1651.0,0.00023282,2]
[329352763,1718273451508,-616.0,0.00023282,2]
[329352764,1718273451518,-200.985,0.00023282,2]
[329352765,1718273451530,-151.0,0.00023282,7]
[329352766,1718273451542,-151.0,0.00023282,7]
[329352767,1718273451553,-151.0,0.00023282,7]
[329352768,1718273451567,-151.0,0.00023282,7]
[329352769,1718273451577,-151.0,0.00023282,7]
[329352770,1718273451588,-151.0,0.00023282,7]
[329352771,1718273451600,-152.977553,0.00023282,7]
[329352772,1718273451615,-210.28303,0.00023282,7]
[329352773,1718273451626,-210.28303,0.00023282,7]
[329352774,1718273451638,-151.0,0.00023282,7]
[329352775,1718273451652,-151.0,0.00023282,7]
[329352776,1718273451666,-151.0,0.00023282,7]
[329352777,1718273451679,-277.244568,0.00023282,7]
[329352778,1718273451690,-151.0,0.00023288,7]
[329352779,1718273451701,-151.0,0.00023288,7]
[329352780,1718273451714,-1000.0,0.00023388,2]
[329352781,1718273451725,-15968.3408017,0.00023659,2]
[329352782,1718273451939,-2693.90196,0.00023659,2]
[329352783,1718273452093,-1432.4982958,0.00023659,2]
[329352784,1718273452112,-2953.82764984,0.00023659,2]
[329352785,1718273452179,-388.22065206,0.00023659,2]
[329352786,1718273452193,-1719.15179929,0.00023659,2]
[329352787,1718273452207,-263.78903462,0.00023659,2]
[329352788,1718273452267,-480.16982061,0.00023659,2]
[329352789,1718273452282,-2448.97318394,0.00023659,2]
[329352790,1718273452297,-1687.7230393,0.00023659,2]
[329352791,1718273452309,-151.0,0.00023659,7]
[329352792,1718273452320,-151.0,0.00023659,7]
[329352793,1718273452331,-50.42689765,0.00023659,7]
[329352794,1718273452345,-100.57310235,0.00023659,7]
[329352795,1718273452356,-151.0,0.00023659,7]
[329352796,1718273452367,-186.444417,0.00023659,7]
[329352797,1718273452379,-152.57248065,0.00023659,7]
[329352798,1718273452412,-33.87193635,0.00023659,7]
[329352799,1718273452424,-180.0,0.0002423,2]
[329352800,1718273452438,-1047.79360002,0.00024329,2]
[329352801,1718273452450,-500.0,0.00024329,2]
[329352802,1718273452462,-157.96553431,0.00024355,2]
[329352803,1718273452475,-156.29410766,0.00024368,2]
[329352804,1718273452488,-223.49097493,0.00024374,2]
[329352805,1718273452499,-157.31,0.00024384,2]
[329352806,1718273452510,-259.52,0.00024384,2]
[329352807,1718273452521,-349.48,0.00024384,2]
[329352808,1718273452531,-223.49097493,0.00024393,2]
[329352809,1718273452542,-7500.0,0.000244,2]
[329352810,1718273452553,-151.0,0.000244,7]
[329352811,1718273452564,-166.66666666,0.00024409,2]
[329352812,1718273452574,-2902.35987761,0.00024445,2]
[329352813,1718273452586,-152.29,0.0002449,2]
[329352814,1718273452601,-152.29,0.0002449,2]
[329352815,1718273452611,-156.58976414,0.00024499,10]
[329352816,1718273452622,-5540.58656549,0.000245,3]
[329352817,1718273474073,591.21638032,0.0001125,2]
[329352818,1718273474109,1962.33530845,0.0001125,2]
[329352830,1718273800398,152.67,0.00024329,30]
[329352849,1718274558189,-193.24307856,0.00014256,2]
[329352850,1718274558220,-959.6196,0.0001427,2]
[329352851,1718274558255,-626.52827106,0.00014398,2]
[329352852,1718274558314,-158.9647594,0.00014493,2]
[329352853,1718274558347,-5962.0514,0.000149,2]
[329352854,1718274558379,-150.0,0.00014997,2]
[329352855,1718274558414,-300.0,0.00014997,2]
[329352856,1718274558448,-205.04112632,0.00014998,2]
[329352857,1718274558478,-382.73488542,0.00014998,2]
[329352858,1718274558507,-4066.30684285,0.00014998,2]
[329352864,1718274633710,-531.78505959,0.00014996,2]
[329352865,1718274633722,-150.0,0.00014997,2]
[329352866,1718274633746,-2607.67516783,0.00014998,2]
[329352868,1718274633761,-508.98507123,0.00014998,2]
[329352870,1718274633789,-207.87759516,0.00014998,2]
[329352872,1718274633803,-2127.5432517,0.00014999,2]
[329352873,1718274633844,-3845.88360665,0.00014999,2]
[329352875,1718274633856,-3959.95580288,0.00015,2]
[329352877,1718274633868,-59825.78301376,0.00015,2]
[329352879,1718274633878,-1363.84442501,0.00015,2]
[329352881,1718274633890,-27786.05174386,0.00015,2]
[329352883,1718274633903,-621.20003601,0.00015,2]
[329352884,1718274633915,-1000.0,0.00016,2]
[329352886,1718274633926,-499.99,0.00016,2]
[329352887,1718274633940,-1804.75283889,0.000165,2]
[329352888,1718274633952,-1801.29,0.000165,2]
[329352889,1718274633963,-453.0,0.00017005,2]
[329352890,1718274633974,-650.00900782,0.00018,2]
[329352891,1718274633985,-500.0,0.000185,2]
[329352892,1718274633999,-250.0,0.00018517,2]
[329352893,1718274634012,-2549.0,0.000191,2]
[329352894,1718274634026,-548.0,0.000191,2]
[329352896,1718274634044,-1000.0,0.00019115,2]
[329352897,1718274634200,-453.0,0.00019269,2]
[329352898,1718274634230,-250.0,0.0001927,2]
[329352899,1718274634242,-226.76270483,0.000201,2]
[329352900,1718274634258,-1250.0,0.00021,2]
[329352901,1718274634280,-330.15507371,0.000212,2]
[329352902,1718274634299,-288.0,0.00021331,2]
[329352903,1718274634313,-5152.0,0.00021331,2]
[329352904,1718274634378,-1194.0,0.00021331,2]
[329352905,1718274634402,-25138.829,0.00021331,2]
[329352906,1718274634416,-1000.0,0.00021504,2]
[329352907,1718274634434,-453.0,0.00021533,2]
[329352908,1718274634451,-202.19,0.00021918,2]
[329352909,1718274634474,-250.0,0.00021918,2]
[329352910,1718274634499,-435.33,0.00022844,2]
[329352911,1718274634532,-241.3882198,0.00023,2]
[329352912,1718274634580,-1300.0,0.00023,2]
[329352913,1718274634591,-453.0,0.00023797,2]
[329352914,1718274634606,-1000.0,0.00023893,2]
[329352915,1718274634626,-46832.5362,0.00024042,2]
[329352916,1718274634649,-206.00349113,0.0002413,2]
[329352917,1718274634664,-164.8006,0.00024142,2]
[329352918,1718274634678,-86072.8227,0.00024142,2]
[329352919,1718274634698,-4489.2548,0.00024142,2]
[329352920,1718274634713,-180.0,0.0002423,2]
[329352921,1718274634726,-81588.79214869,0.00024242,2]
[329352922,1718274634742,-157.89937374,0.00024308,2]
[329352923,1718274634767,-152.38627793,0.0002431,2]
[329352924,1718274634780,-151.28937961,0.00024324,2]
[329352925,1718274634801,-1047.79360002,0.00024329,2]
[329352926,1718274634824,-703.87385397,0.00024334,2]
[329352927,1718274634849,-703.87385397,0.00024343,2]
[329352928,1718274634861,-156.3,0.00024384,2]
[329352929,1718274634878,-152.1899555,0.00024386,2]
[329352930,1718274634889,-176.92497927,0.000244,2]
[329352931,1718274634901,-57837.8426,0.000244,2]
[329352932,1718274634916,-215.0,0.000244,2]
[329352933,1718274634927,-161.10902594,0.000244,2]
[329352934,1718274634946,-180.83664651,0.000244,2]
[329352935,1718274634961,-1754.55152774,0.000244,2]
[329352936,1718274634976,-7500.0,0.000244,2]
[329352937,1718274634995,-234.12581465,0.00024445,2]
[329352938,1718274635024,-234.12581465,0.00024483,2]
[329352939,1718274635057,-188.75419,0.0002449,2]
[329352940,1718274635071,-152.34,0.0002449,2]
[329352941,1718274635088,-152.34,0.0002449,2]
[329352942,1718274635105,-114908.34842203,0.00024498,2]
[329352943,1718274635129,-151.0,0.00024498,7]
[329352944,1718274635151,-151.0,0.00024498,7]
[329352945,1718274635164,-151.0,0.00024498,7]
[329352946,1718274635175,-151.0,0.00024498,7]
[329352947,1718274635218,-151.0,0.00024498,7]
[329352948,1718274635230,-151.0,0.00024498,7]
[329352949,1718274635246,-151.0,0.00024498,7]
[329352950,1718274635257,-151.0,0.00024498,7]
[329352951,1718274635272,-291.638693,0.00024498,7]
[329352952,1718274635289,-247.903222,0.00024498,7]
[329352953,1718274635306,-924.835695,0.00024498,7]
[329352954,1718274635319,-924.835695,0.00024498,7]
[329352955,1718274635354,-151.0,0.00024498,7]
[329352956,1718274635378,-152.157222,0.00024498,7]
[329352957,1718274635404,-155.361259,0.00024498,7]
[329352958,1718274635431,-151.0,0.00024498,7]
[329352959,1718274635453,-155.361259,0.00024498,7]
[329352960,1718274635473,-151.0,0.00024498,7]
[329352961,1718274635485,-151.0,0.00024498,7]
[329352962,1718274635498,-14448.53027911,0.00024499,2]
[329352963,1718274635513,-156.15078484,0.00024499,2]
[329352964,1718274635526,-500.0,0.00024499,2]
[329352965,1718274635538,-500.0,0.00024499,2]
[329352966,1718274635563,-331.59925627,0.00024499,2]
[329352967,1718274635584,-253.49692492,0.00024499,2]
[329352968,1718274635599,-500.0,0.00024499,2]
[329352969,1718274635616,-370.73808589,0.00024499,2]
[329352970,1718274635628,-500.0,0.00024499,2]
[329352971,1718274635651,-523.27101148,0.00024499,2]
[329352972,1718274635661,-24393.88731532,0.000245,3]
[329352983,1718274641974,-151.0,0.00024498,7]
[329352984,1718274641995,-151.0,0.00024498,7]
[329352985,1718274642008,-8423.02170593,0.000245,3]
[329352986,1718274643048,-555.70838843,0.000245,3]
[329353008,1718274644982,-5005.15716416,0.000245,3]
[329353015,1718274645097,-0.00548274,0.000245,3]
[329353034,1718274647656,-303.9189246,0.00024499,2]
[329353035,1718274647669,-376.73954324,0.00024499,2]
[329353036,1718274647680,-2750.80360693,0.000245,3]
[329353037,1718274647820,-11320.4239832,0.000245,3]
[329353045,1718274717667,500.0,0.00024999,30]
[329353046,1718274717934,500.0,0.00024999,30]
[329353047,1718274718217,500.0,0.00024999,30]
[329353048,1718274718611,500.0,0.00024999,30]
[329353049,1718274718886,500.0,0.00024999,30]
[329353051,1718274719165,500.0,0.00024999,30]
[329353052,1718274719443,500.0,0.00024999,30]
[329353053,1718274719780,500.0,0.00024999,30]
[329353057,1718274744096,152.67,0.00024329,30]
[329353065,1718275010325,500.0,0.00024999,30]
[329353066,1718275010585,500.0,0.00024999,30]
[329353067,1718275010872,594.1,0.00024999,30]
[329353068,1718275174071,-3035.5136,0.0001288,2]
[329353069,1718275174109,-4748.4864,0.0001298,2]
[329353085,1718275757221,-5845.20237757,0.00012979,2]
[329353086,1718275757273,-4378.99202545,0.0001298,2]
[329353100,1718275833508,-450.0,0.0001298,2]
[329353101,1718275833638,-1847.77658844,0.0001298,2]
[329353102,1718275833658,-184.75301057,0.00013873,2]
[329353103,1718275833674,-150.0,0.00013973,2]
[329353104,1718275833686,-300.0,0.00013989,2]
[329353105,1718275833697,-5201.70470985,0.0001399,2]
[329353106,1718275833710,-478.12,0.0001399,3]
[329353107,1718275833733,-152.34,0.0001399,2]
[329353108,1718275833755,-1515.97596609,0.00013998,2]
[329353109,1718275833793,-1000.0,0.00013999,2]
[329353110,1718275833805,-382.96500773,0.00013999,2]
[329353111,1718275833817,-77864.45962488,0.00014,2]
[329353112,1718275833833,-825.99999941,0.00014,2]
[329353113,1718275834021,-792.5901174,0.00014,2]
[329353114,1718275834074,-926.58736628,0.00014,2]
[329353115,1718275834101,-609.67999998,0.00014,2]
[329353116,1718275834317,-3132.41857615,0.00014,2]
[329353117,1718275834440,-3185.94146673,0.00014,2]
[329353118,1718275834557,-245853.31884297,0.00014,2]
[329353119,1718275834632,-732.91429086,0.00014,2]
[329353140,1718275841565,-529.08500001,0.00014,2]
[329353141,1718275841954,-269.54288353,0.00014,2]
[329353143,1718275843280,-4787.60845591,0.00014,2]
[329353149,1718275844273,-1050.83018324,0.00014,2]
[329353151,1718275844773,-548.518,0.00014,2]
[329353157,1718275844893,-4369.04800956,0.00014,2]
[329353159,1718275845149,-399.0038801,0.00014,2]
[329353160,1718275845167,-1512.690657,0.00014,2]
[329353161,1718275845184,-6973.38564092,0.00014,2]
[329353162,1718275845228,-17452.26548079,0.00014,2]
[329353163,1718275845328,-17949.8449191,0.00014,2]
[329353164,1718275845375,-487.472004,0.00014,2]
[329353165,1718275845427,-10743.9162534,0.00014,2]
[329353166,1718275845450,-537.22222227,0.00014,2]
[329353167,1718275845881,-1530.03477773,0.00014,2]
[329353168,1718275845895,-4070.08297907,0.00014,2]
[329353169,1718275845908,-669.22858176,0.00014,2]
[329353170,1718275845995,-1814.56851,0.00014,2]
[329353171,1718275846031,-381.33465368,0.00014,2]
[329353172,1718275846060,-19974.70414506,0.00014,2]
[329353173,1718275846096,-489485.77844877,0.00014,2]
[329353174,1718275846111,-499.99,0.00014,2]
[329353175,1718275846127,-3959.95580288,0.00015,2]
[329353176,1718275846138,-21991.50667771,0.00015,2]
[329353177,1718275846152,-499.99,0.00015,2]
[329353178,1718275846171,-420.0,0.00015326,2]
[329353181,1718275846183,-587.0,0.00016791,2]
[329353183,1718275846195,-214.74011435,0.00017042,2]
[329353184,1718275846206,-11472.35,0.00017808,2]
[329353185,1718275846220,-284.06,0.00018943,2]
[329353186,1718275846234,-417.49,0.00018943,2]
[329353187,1718275846246,-2535.0,0.000191,2]
[329353188,1718275846258,-356.39968126,0.00019178,2]
[329353189,1718275846277,-218.20272922,0.00019178,2]
[329353190,1718275846288,-500.0,0.00019178,2]
[329353191,1718275846303,-214.74011435,0.00019183,2]
[329353192,1718275846318,-226.76270483,0.000201,2]
[329353193,1718275846329,-250.01,0.00020481,2]
[329353194,1718275846340,-254.05,0.00020799,2]
[329353195,1718275846361,-1250.0,0.00021,2]
[329353196,1718275846382,-1000.0,0.00021008,2]
[329353197,1718275846396,-250.0,0.00021057,2]
[329353198,1718275846408,-250.0,0.0002108,2]
[329353199,1718275846422,-1292.2,0.00021167,2]
[329353200,1718275846445,-417.49,0.00021207,2]
[329353201,1718275846459,-214.74011435,0.00021325,2]
[329353202,1718275846474,-167.5,0.00021743,2]
[329353203,1718275846502,-796.0,0.000219,2]
[329353204,1718275846514,-168.49,0.00021918,2]
[329353205,1718275846528,-250.0,0.00021918,2]
[329353206,1718275846539,-301.628,0.00022381,2]
[329353207,1718275846555,-808.0,0.00022381,2]
[329353208,1718275846566,-150.0,0.00022381,2]
[329353209,1718275846579,-1679.698,0.00022381,2]
[329353210,1718275846592,-298.388,0.00022381,2]
[329353211,1718275846615,-151.0,0.00022381,2]
[329353212,1718275846627,-197.271,0.00022381,2]
[329353213,1718275846643,-150.482,0.00022381,2]
[329353214,1718275846655,-241.3882198,0.00023,2]
[329353215,1718275846667,-1300.0,0.00023,2]
[329353216,1718275846680,-436.35,0.00023349,2]
[329353217,1718275846705,-214.74011435,0.00023466,2]
[329353218,1718275846717,-417.49,0.00023471,2]
[329353219,1718275846728,-1000.0,0.00023534,2]
[329353220,1718275846738,-1000.0,0.00023634,2]
[329353221,1718275846760,-300.0,0.00023635,2]
[329353222,1718275846786,-500.0,0.00024109,2]
[329353223,1718275846801,-599.94941161,0.00024109,2]
[329353224,1718275846823,-501.52261605,0.00024109,2]
[329353225,1718275846840,-500.0,0.00024109,2]
[329353226,1718275846861,-500.0,0.00024109,2]
[329353227,1718275846887,-500.0,0.00024109,2]
[329353228,1718275846901,-500.0,0.00024109,2]
[329353229,1718275846925,-180.0,0.0002423,2]
[329353231,1718275846947,-157.29516,0.0002425,2]
[329353232,1718275846963,-390.304093,0.000243,2]
[329353233,1718275846977,-269.67,0.00024384,2]
[329353234,1718275846996,-332.0,0.00024384,2]
[329353235,1718275847025,-167.0,0.00024392,2]
[329353236,1718275847037,-1608.33890041,0.00024398,2]
[329353237,1718275847061,-210.92282918,0.000244,2]
[329353240,1718275847758,-238.728,0.00022381,2]
[329353241,1718275847786,-166.518,0.000244,2]
[329353242,1718275848306,-349.61,0.000244,2]
[329353268,1718276285478,-367.70394838,0.00012973,2]
[329353269,1718276285567,-193.24307856,0.00012974,2]
[329353270,1718276285598,-886.40752803,0.00012976,2]
[329353271,1718276285628,-3246.07208105,0.0001298,2]
[329353272,1718276554715,246.10789942,0.00025,30]
[329353286,1718276964230,-537.93879391,0.00017259,2]
[329353287,1718276964258,-53.28267027,0.00018899,2]
[329353295,1718277032716,-246.71732973,0.00018899,2]
[329353296,1718277032730,-348.45097027,0.00018999,2]
[329353297,1718277033086,-651.54902973,0.00018999,2]
[329353298,1718277033099,-2535.0,0.00019,2]
[329353299,1718277033116,-226.76270483,0.000201,2]
[329353300,1718277033128,-453.25,0.00020482,2]
[329353301,1718277033139,-801.15355138,0.00020609,2]
[329353302,1718277033150,-796.0,0.000219,2]
[329353303,1718277033164,-500.0,0.00021948,2]
[329353304,1718277033177,-250.0,0.00021992,2]
[329353305,1718277033236,-1000.0,0.00022223,2]
[329353306,1718277033262,-1302.2,0.00022257,2]
[329353307,1718277033273,-250.0,0.00022277,2]
[329353308,1718277033307,-250.0,0.00022287,2]
[329353309,1718277033334,-168.49,0.000223,2]
[329353310,1718277033345,-169.68,0.00022345,2]
[329353311,1718277033359,-250.0,0.00022369,2]
[329353312,1718277033381,-150.178,0.00022381,2]
[329353313,1718277033396,-150.347,0.00022381,2]
[329353314,1718277033414,-499.99,0.00022381,2]
[329353315,1718277033435,-808.0,0.00022381,2]
[329353316,1718277033468,-1679.698,0.00022381,2]
[329353317,1718277033494,-150.0,0.00022381,2]
[329353318,1718277033507,-301.628,0.00022381,2]
[329353319,1718277033518,-453.25,0.00022745,2]
[329353320,1718277033530,-201.692111,0.000228,2]
[329353321,1718277033555,-241.3882198,0.00023,2]
[329353322,1718277033575,-167.25,0.00023453,2]
[329353323,1718277033592,-791.208,0.00023453,2]
[329353324,1718277033608,-427.6682797,0.00023518,2]
[329353325,1718277033624,-530.63,0.0002354,2]
[329353326,1718277033643,-1130.0,0.00024,2]
[329353327,1718277033662,-211.6946,0.00024009,2]
[329353328,1718277033673,-282.73690887,0.00024107,2]
[329353329,1718277033686,-504.3610099,0.00024109,2]
[329353330,1718277033702,-500.0,0.00024109,2]
[329353331,1718277033718,-500.0,0.00024109,2]
[329353332,1718277033733,-509.76635745,0.00024109,2]
[329353333,1718277033751,-500.0,0.00024109,2]
[329353334,1718277033763,-511.37150831,0.00024109,2]
[329353335,1718277033776,-258.04755901,0.00024109,2]
[329353336,1718277033790,-200.27785811,0.00024109,2]
[329353337,1718277033802,-504.96208843,0.00024109,2]
[329353338,1718277033822,-509.55753674,0.00024109,2]
[329353339,1718277033844,-524.9435212,0.00024109,2]
[329353340,1718277033859,-259.49586226,0.00024109,2]
[329353341,1718277033870,-513.75269132,0.00024109,2]
[329353342,1718277033882,-504.92017657,0.00024109,2]
[329353343,1718277033893,-500.0,0.00024109,2]
[329353344,1718277033904,-501.74318251,0.00024109,2]
[329353345,1718277033917,-504.68771865,0.00024109,2]
[329353346,1718277033931,-506.73594409,0.00024109,2]
[329353347,1718277033941,-494.84568875,0.00024109,2]
[329353348,1718277033955,-511.39049692,0.00024109,2]
[329353349,1718277033983,-506.3673912,0.00024109,2]
[329353350,1718277033994,-186.63938942,0.00024109,2]
[329353351,1718277034005,-501.8299452,0.00024109,2]
[329353352,1718277034050,-294.26174861,0.00024109,2]
[329353353,1718277034065,-505.31512473,0.00024109,2]
[329353354,1718277034081,-469.62549546,0.00024109,2]
[329353355,1718277034093,-286.64259174,0.00024109,2]
[329353356,1718277034106,-422.70884185,0.00024109,2]
[329353357,1718277034120,-502.39300298,0.00024109,2]
[329353358,1718277034133,-504.83730413,0.00024109,2]
[329353360,1718277034145,-156.30963711,0.00024109,2]
[329353362,1718277034156,-508.36155078,0.00024109,2]
[329353363,1718277034167,-499.17403117,0.00024109,2]
[329353365,1718277034181,-382.79437674,0.00024109,2]
[329353366,1718277034205,-506.45464056,0.00024109,2]
[329353367,1718277034227,-419.28556779,0.00024109,2]
[329353368,1718277034238,-515.32093724,0.00024109,2]
[329353369,1718277034249,-568.38910074,0.00024109,2]
[329353370,1718277034260,-507.89360867,0.00024109,2]
[329353371,1718277034276,-169.30111408,0.00024109,2]
[329353372,1718277034288,-209.47932932,0.00024109,2]
[329353376,1718277034432,-506.21099828,0.00024109,2]
[329353378,1718277034444,-412.6257404,0.00024109,2]
[329353380,1718277034484,-500.0,0.00024109,2]
[329353382,1718277034516,-367.41022354,0.00024109,2]
[329353383,1718277034534,-507.07263518,0.00024109,2]
[329353385,1718277034551,-329.44744704,0.00024109,2]
[329353386,1718277034562,-296.60139188,0.00024109,2]
[329353388,1718277034573,-287.26,0.00024109,2]
[329353390,1718277034593,-165.09785527,0.00024109,2]
[329353392,1718277034607,-461.69028878,0.00024109,2]
[329353394,1718277034619,-500.0,0.00024109,2]
[329353395,1718277034638,-283.97608941,0.00024109,2]